bitfinex/quotes_SOLUSD_20240808
["timestamp","ask_amount","ask_price","bid_price","bid_amount"]
[1723084808939,6.1858,155.46,155.37,20.50386564]
[1723084809115,6.1858,155.46,155.37,20.0]
[1723084811914,6.1858,155.46,155.4,47.61]
[1723084812121,6.1858,155.46,155.44,47.61]
[1723084812316,16.5994,155.47,155.45,20.0]
[1723084812516,5.0,155.48,155.45,20.58402298]
[1723084812743,5.0,155.48,155.46,0.97512086]
[1723084813129,5.0,155.48,155.46,1.28616544]
[1723084813831,0.8258795,155.55,155.46,1.28616544]
[1723084814050,0.8258795,155.55,155.54,47.61]
[1723084814253,9.93607016,155.69,155.58,66.94]
[1723084814443,9.93607016,155.69,155.62,47.61]
[1723084814665,9.93607016,155.69,155.63,20.0]
[1723084814835,9.93607016,155.69,155.64,1.12122675]
[1723084815034,3.88507016,155.69,155.66,47.61]
[1723084815234,0.8258795,155.85,155.68,47.61]
[1723084815433,239.21703071,155.74,155.73,47.61]
[1723084815645,239.21703071,155.74,155.73,20.0]
[1723084815852,239.21703071,155.74,155.68,47.61]
[1723084816240,239.21703071,155.74,155.69,20.0]
[1723084816556,239.21703071,155.74,155.64,49.74682842]
[1723084816759,6.1899,155.73,155.64,2.13682842]
[1723084817139,6.1899,155.73,155.59,47.61]
[1723084817338,6.1899,155.73,155.6,20.0]
[1723084817840,1.28509694,155.72,155.6,20.0]
[1723084818149,0.17,155.71,155.52,58.0]
[1723084818447,0.17,155.71,155.53,0.54858405]
[1723084818653,46.62509694,155.72,155.53,0.54858405]
[1723084818860,46.62509694,155.72,155.52,58.54883485]
[1723084818861,6.4232,155.69,155.52,58.54883485]
[1723084819033,46.62509694,155.68,155.44,0.54906247]
[1723084819239,45.34,155.68,155.44,0.54906247]
[1723084819430,1.28509694,155.67,155.44,0.54906247]
[1723084819632,0.34,155.66,155.48,58.0]
[1723084819864,0.17,155.65,155.49,0.65360327]
[1723084820158,0.17,155.66,155.49,1.285471]
[1723084820459,22.2061,155.65,155.49,1.285471]
[1723084820664,0.34,155.64,155.49,1.285471]
[1723084821349,1.62509694,155.64,155.48,59.28546502]
[1723084821653,46.62509694,155.64,155.48,1.28546502]
[1723084821869,6.4264,155.61,155.45,2.18214675]
[1723084822039,0.34,155.6,155.46,1.28577719]
[1723084822672,22.2061,155.65,155.47,9.93857975]
[1723084822959,6.4253,155.64,155.47,9.93857975]
[1723084823652,22.2061,155.65,155.47,1.28569448]
[1723084823861,6.4266,155.61,155.44,1.28584074]
[1723084824159,6.4258,155.63,155.45,8.65288527]
[1723084824358,6.4265,155.61,155.46,1.28552813]
[1723084824564,0.17,155.6,155.46,1.28552813]
[1723084824938,6.4272,155.59,155.46,1.28546462]
[1723084825153,0.17,155.6,155.46,1.28546462]
[1723084825332,6.5968,155.6,155.46,1.28546462]
[1723084825547,0.17,155.6,155.46,1.28546462]
[1723084825857,6.4281,155.57,155.44,1.28588509]
[1723084826056,0.34,155.56,155.44,1.28588509]
[1723084826357,6.4275,155.59,155.44,1.28588509]
[1723084826562,1.28509694,155.62,155.44,1.28588509]
[1723084826764,6.4281,155.57,155.44,1.28588509]
[1723084826938,6.5984,155.56,155.44,1.28588509]
[1723084827250,6.398,155.6,155.44,1.28539811]
[1723084827565,6.4281,155.57,155.44,1.28539811]
[1723084827762,45.17,155.59,155.44,1.28539811]
[1723084827763,6.7684,155.56,155.44,1.28539811]
[1723084827941,6.5989,155.55,155.41,1.28587164]
[1723084828142,0.17,155.54,155.41,1.28587164]
[1723084828345,16.5086,155.53,155.41,1.28587164]
[1723084829270,0.34,155.52,155.41,1.28587164]
[1723084829457,0.34,155.52,155.32,32.4119795]
[1723084829458,6.168,155.51,155.32,16.9348795]
[1723084829650,45.17,155.5,155.32,16.9348795]
[1723084829850,1.45509694,155.49,155.33,1.28609683]
[1723084830071,0.17,155.48,155.33,1.28609683]
[1723084830444,6.433,155.45,155.32,20.32934874]
[1723084830651,0.34,155.44,155.32,20.32934874]
[1723084830949,0.34,155.44,155.32,0.8258795]
[1723084830950,6.1735,155.42,155.32,0.8258795]
[1723084831158,6.1735,155.42,155.33,1.2864015]
[1723084831670,6.1735,155.42,155.33,1.28669214]
[1723084832855,6.1735,155.42,155.33,20.0]
[1723084833285,0.34,155.41,155.34,1.28685574]
[1723084833570,6.1735,155.42,155.34,1.28685574]
[1723084834879,6.1735,155.42,155.34,46.28685574]
[1723084835252,6.1735,155.42,155.35,20.0]
[1723084835452,6.1735,155.42,155.36,46.28682896]
[1723084835675,6.1735,155.42,155.37,20.0]
[1723084835872,6.1735,155.42,155.32,7.2583795]
[1723084835873,6.1735,155.42,155.33,1.28699961]
[1723084836179,6.1735,155.42,155.33,21.28699961]
[1723084836350,0.17,155.41,155.33,20.0]
[1723084836549,0.34,155.41,155.33,20.0]
[1723084836749,0.34,155.41,155.34,1.28670737]
[1723084837785,0.34,155.41,155.32,7.2583795]
[1723084837982,0.34,155.41,155.32,0.8258795]
[1723084838277,46.62509694,155.41,155.32,0.8258795]
[1723084838775,1.62509694,155.41,155.32,0.8258795]
[1723084839084,6.4355,155.39,155.32,0.8258795]
[1723084839255,6.4355,155.39,155.16,59.94755059]
[1723084839256,6.4362,155.37,155.16,117.94755059]
[1723084839455,6.5203,155.35,155.24,15.5263]
[1723084839652,0.17,155.34,155.16,60.99845946]
[1723084839861,6.7777,155.34,155.16,85.11885546]
[1723084840158,0.34,155.34,155.16,85.11885546]
[1723084840881,0.34,155.34,155.17,1.10757031]
[1723084841260,12.9576,155.35,155.17,1.10757031]
[1723084841261,6.5203,155.35,155.17,40.43757031]
[1723084841460,6.5203,155.35,155.18,8.65288527]
[1723084841693,6.5203,155.35,155.21,58.0]
[1723084841983,6.5203,155.35,155.22,1.10780528]
[1723084842183,12.9574,155.35,155.22,1.10780528]
[1723084842358,12.9574,155.35,155.21,59.10883992]
[1723084842680,7.80539694,155.35,155.17,1.10977565]
[1723084842986,0.17,155.34,155.18,1.28806741]
[1723084843181,0.34,155.34,155.18,1.28806741]
[1723084843985,6.7775,155.34,155.18,1.28806741]
[1723084844187,0.34,155.34,155.18,1.28806741]
[1723084845104,6.4384,155.32,155.17,20.0]
[1723084845292,0.34,155.31,155.18,46.21459747]
[1723084845594,0.17,155.3,155.18,62.27319747]
[1723084845797,0.17,155.31,155.19,20.0]
[1723084845968,0.34,155.32,155.19,20.0]
[1723084846271,6.4408,155.26,155.16,2.99845946]
[1723084846476,6.371,155.25,155.16,2.99845946]
[1723084846673,15.0259,155.24,155.16,0.8258795]
[1723084846889,0.34,155.23,155.16,0.8258795]
[1723084847073,0.34,155.23,155.08,1.28887436]
[1723084847397,45.34,155.23,155.08,16.31484763]
[1723084847613,45.34,155.23,155.08,1.28894763]
[1723084848107,6.1666,155.22,155.08,1.28894763]
[1723084848279,15.4313,155.2,155.04,1.28895744]
[1723084848473,51.7837,155.19,155.04,1.28895744]
[1723084848673,51.7837,155.19,155.03,1.28895743]
[1723084848974,6.4458,155.14,155.03,1.28895743]
[1723084849299,6.1184,155.11,155.01,0.8258795]
[1723084849472,0.17,155.1,155.01,0.8258795]
[1723084849688,21.9442,155.09,154.9,1.28413186]
[1723084849968,28.393,155.07,154.9,1.28413186]
[1723084850170,28.393,155.07,154.88,10.11393476]
[1723084850171,6.45,155.04,154.88,11.3992593]
[1723084850401,0.34,155.03,154.88,1.28532454]
[1723084850902,0.17,155.03,154.88,1.28532454]
[1723084851093,0.34,155.04,154.88,1.28532454]
[1723084851273,6.79,155.04,154.89,1.28524155]
[1723084851676,6.5016,155.03,154.89,1.28524155]
[1723084851894,0.17,155.02,154.87,1.28524155]
[1723084852202,0.34,155.02,154.87,1.28524155]
[1723084854593,0.34,155.02,154.87,46.28524155]
[1723084854918,16.0545,155.01,154.88,20.0]
[1723084855205,0.34,155.0,154.89,1.28973157]
[1723084855407,16.0545,155.01,154.9,1.29043399]
[1723084855709,16.0545,155.01,154.9,21.29043399]
[1723084856302,16.0545,155.01,154.91,45.0]
[1723084856501,16.0545,155.01,154.92,1.29025562]
[1723084856703,16.0545,155.01,154.9,20.0]
[1723084857008,16.0545,155.01,154.91,45.0]
[1723084857182,16.0545,155.01,154.92,20.0]
[1723084857575,1.28509694,155.0,154.92,20.0]
[1723084857777,0.34,154.99,154.88,2.16847421]
[1723084857995,0.17,154.98,154.86,0.8258795]
[1723084858193,6.5476,154.97,154.86,20.8258795]
[1723084858422,6.5476,154.97,154.87,0.64489811]
[1723084858703,6.5476,154.97,154.9,58.41]
[1723084859088,16.0545,155.01,154.9,58.41]
[1723084859297,16.0545,155.01,154.91,1.29022069]
[1723084859784,16.0545,155.01,154.91,66.29022069]
[1723084860905,16.0545,155.01,154.94,58.41]
[1723084861091,16.0545,155.01,154.95,20.0]
[1723084861295,16.0545,155.01,154.91,65.0]
[1723084861686,16.0545,155.01,154.92,1.29033497]
[1723084861897,16.0545,155.01,154.93,1.29022042]
[1723084862791,16.0545,155.01,154.92,1.29017331]
[1723084863091,16.0545,155.01,154.93,1.29009003]
[1723084863409,16.0545,155.01,154.94,0.17]
[1723084863612,16.0545,155.01,154.95,1.28992351]
[1723084863783,16.0545,155.01,154.94,1.28992351]
[1723084864210,16.0545,155.01,154.95,0.17]
[1723084864383,16.0545,155.01,154.96,1.29004669]
[1723084864711,16.1735,155.07,154.96,1.29004669]
[1723084864884,22.4673,155.07,154.98,58.41]
[1723084865087,22.4673,155.07,154.99,66.28968084]
[1723084865613,6.1812,155.13,155.02,77.74]
[1723084865908,6.1812,155.13,155.0,0.17]
[1723084865909,6.1812,155.13,155.07,58.41]
[1723084866109,6.1812,155.13,155.08,66.28873286]
[1723084866720,6.1812,155.13,155.08,65.0]
[1723084866906,6.1812,155.13,155.09,0.41242014]
[1723084867109,6.1812,155.13,155.09,0.97999408]
[1723084867323,6.1812,155.13,155.08,66.2889296]
[1723084868618,6.1812,155.13,155.08,68.44565706]
[1723084869808,6.1812,155.13,155.08,67.15672746]
[1723084870120,6.1812,155.13,155.04,2.12857916]
[1723084870293,6.1812,155.13,154.99,0.40868716]
[1723084870798,6.1812,155.13,154.99,20.6191829]
[1723084871408,6.1812,155.13,155.07,58.41]
[1723084871604,6.1812,155.13,155.08,46.28899899]
[1723084872206,6.1812,155.13,155.09,20.0]
[1723084872510,15.9629,155.17,155.1,45.0]
[1723084872707,15.9629,155.17,155.11,21.28877794]
[1723084872883,15.9629,155.17,155.12,45.0]
[1723084873083,15.9629,155.17,155.13,20.0]
[1723084873515,15.9629,155.17,155.08,1.28890327]
[1723084873692,15.9629,155.17,155.11,2.23279881]
[1723084873889,15.9629,155.17,155.08,21.28890327]
[1723084874284,15.9629,155.17,155.08,23.46985142]
[1723084874486,15.9629,155.17,155.08,22.18094815]
[1723084875991,15.9629,155.17,155.08,23.46999166]
[1723084876198,15.9629,155.17,155.08,23.46870812]
[1723084876692,15.9629,155.17,155.08,22.18094815]
[1723084876896,0.34,155.16,155.07,15.9629]
[1723084877099,6.4716,155.15,155.0,2.20320489]
[1723084877392,45.34,155.14,154.99,17.25257651]
[1723084877590,6.5463,155.13,154.98,59.69829426]
[1723084877792,45.34,155.12,154.98,59.69829426]
[1723084878115,45.34,155.12,154.89,58.41]
[1723084878116,15.5325,155.1,154.94,58.41]
[1723084878317,51.8863,155.09,154.95,1.29007048]
[1723084878519,51.8863,155.09,154.94,59.70013818]
[1723084879113,6.8863,155.09,154.94,59.70013818]
[1723084879697,45.0,155.08,154.95,20.0]
[1723084879901,45.0,155.08,154.9,58.41]
[1723084879902,1.62509694,155.07,154.9,58.41]
[1723084880224,0.34,155.07,154.9,77.74]
[1723084880717,0.34,155.07,154.91,1.09199549]
[1723084881198,1.62509694,155.07,154.9,58.41]
[1723084882027,6.4491,155.06,154.91,1.29029967]
[1723084882200,45.17,155.05,154.92,1.29013309]
[1723084882396,0.34,155.05,154.9,77.74]
[1723084882806,0.34,155.05,154.91,6.6403]
[1723084883018,0.34,155.05,154.91,25.9703]
[1723084883433,6.6403,155.06,154.91,25.9703]
[1723084883611,6.6403,155.06,154.92,45.0]
[1723084883805,6.6403,155.06,154.93,20.0]
[1723084884009,6.6403,155.06,154.94,45.0]
[1723084884216,1.28509694,155.05,154.95,20.0]
[1723084884417,6.6403,155.06,154.95,20.0]
[1723084884627,45.17,155.05,154.95,20.0]
[1723084885413,15.2851,155.04,154.95,20.0]
[1723084885823,0.17,155.03,154.95,20.0]
[1723084886812,45.17,155.03,154.91,7.92932142]
[1723084887029,6.4417,155.01,154.91,6.6403]
[1723084887327,45.17,155.0,154.91,6.6403]
[1723084887627,0.17,154.99,154.92,1.29000768]
[1723084887837,0.17,155.0,154.91,6.6403]
[1723084888127,0.17,155.0,154.86,59.2358795]
[1723084888128,0.34,155.0,154.88,3.42883167]
[1723084888332,0.34,155.0,154.88,16.40564432]
[1723084888825,0.34,155.0,154.89,45.0]
[1723084889027,0.34,155.0,154.9,1.29041918]
[1723084889240,45.34,155.0,154.9,20.0]
[1723084889749,45.34,155.0,154.9,21.29036025]
[1723084890517,45.34,155.0,154.9,21.29060574]
[1723084890724,45.34,155.0,154.9,20.0]
[1723084891135,45.34,155.0,154.89,47.9]
[1723084891341,45.34,155.0,154.9,0.9660014]
[1723084892056,45.34,155.0,154.89,47.9]
[1723084892250,16.4152,154.99,154.9,1.29028991]
[1723084892427,16.4152,154.99,154.86,0.8258795]
[1723084892428,6.3832,154.97,154.86,0.8258795]
[1723084892744,45.0,154.96,154.86,2.11674732]
[1723084892946,0.34,154.95,154.86,2.11674732]
[1723084893246,45.34,154.95,154.86,2.1167476]
[1723084893549,0.34,154.95,154.86,2.1167476]
[1723084893737,0.34,154.95,154.86,22.1167476]
[1723084893938,0.34,154.95,154.86,20.8258795]
[1723084894247,0.34,154.95,154.86,22.1164953]
[1723084895062,6.3832,154.97,154.89,47.9]
[1723084895230,6.3832,154.97,154.9,20.0]
[1723084896236,45.0,154.96,154.9,20.0]
[1723084896552,0.34,154.95,154.9,20.0]
[1723084897759,0.34,154.95,154.86,0.8258795]
[1723084897928,45.34,154.95,154.87,1.29102585]
[1723084898128,0.34,154.95,154.87,1.29102585]
[1723084898346,0.17,154.94,154.86,2.11700476]
[1723084898547,45.34,154.96,154.86,2.11700476]
[1723084899632,45.34,154.96,154.86,0.8258795]
[1723084899931,45.34,154.96,154.86,2.1170482]
[1723084900363,6.3832,154.97,154.86,2.1170482]
[1723084900534,6.3832,154.97,154.88,47.9]
[1723084900734,6.3832,154.97,154.89,21.29089423]
[1723084901543,6.3832,154.97,154.92,47.9]
[1723084901754,6.3832,154.97,154.93,65.0]
[1723084901941,6.3832,154.97,154.93,66.29044574]
[1723084902145,6.3832,154.97,154.93,65.0]
[1723084902340,6.3832,154.97,154.93,20.0]
[1723084903238,6.3832,154.97,154.94,45.0]
[1723084903433,3.29125511,154.97,154.96,47.9]
[1723084903645,16.4152,154.99,154.96,112.9]
[1723084903853,16.2315,155.09,154.97,20.0]
[1723084904463,16.2315,155.09,154.98,45.0]
[1723084904774,16.2315,155.09,154.99,20.0]
[1723084904951,1.28509694,155.08,154.99,20.0]
[1723084905152,1.28509694,155.07,154.96,47.9]
[1723084905359,1.28509694,155.07,154.97,20.0]
[1723084906457,1.62509694,155.06,154.97,20.0]
[1723084906656,6.2283,155.05,154.97,20.0]
[1723084906855,45.34,155.04,154.97,20.0]
[1723084909251,45.34,155.04,154.96,47.9]
[1723084910671,0.34,155.04,154.96,47.9]
[1723084911275,45.34,155.04,154.96,47.9]
[1723084911455,45.34,155.04,154.97,20.0]
[1723084911950,0.17,155.04,154.97,20.0]
[1723084912464,6.2283,155.05,154.97,20.0]
[1723084912862,7.51339694,155.05,154.97,20.0]
[1723084913176,6.2283,155.05,154.97,20.0]
[1723084913967,0.17,155.04,154.97,20.0]
[1723084914252,6.2283,155.05,154.97,20.0]
[1723084915383,0.17,155.04,154.97,20.0]
[1723084915572,45.34,155.04,154.92,2.23967606]
[1723084915757,45.34,155.04,154.92,47.9]
[1723084916087,16.0738,155.03,154.92,47.9]
[1723084916384,45.17,155.02,154.93,20.0]
[1723084916680,46.62509694,155.02,154.93,20.0]
[1723084916851,7.90339694,155.01,154.88,47.9]
[1723084917180,45.34,155.0,154.88,47.9]
[1723084917378,16.88399694,154.99,154.88,47.9]
[1723084917672,45.34,154.98,154.88,47.9]
[1723084917979,6.2194,154.97,154.86,0.8258795]
[1723084918185,16.0246,154.95,154.86,0.8258795]
[1723084918358,12.6739,154.93,154.8,47.9]
[1723084918556,46.62509694,154.92,154.8,47.9]
[1723084919272,16.4608,154.9,154.76,47.9]
[1723084919578,0.34,154.89,154.76,47.9]
[1723084919878,45.34,154.89,154.8,47.9]
[1723084920080,0.34,154.89,154.8,47.9]
[1723084920379,0.34,154.89,154.84,47.9]
[1723084921185,45.34,154.89,154.84,47.9]
[1723084921376,0.17,154.89,154.84,47.9]
[1723084921580,16.4608,154.9,154.84,47.9]
[1723084921884,16.4608,154.9,154.85,20.0]
[1723084922180,14.4608,154.9,154.85,20.0]
[1723084923288,0.17,154.89,154.85,20.0]
[1723084923787,0.17,154.89,154.81,22.2161192]
[1723084924268,45.34,154.89,154.79,47.9]
[1723084924587,0.34,154.89,154.79,47.9]
[1723084924767,0.34,154.89,154.83,47.9]
[1723084926277,45.34,154.89,154.75,1.29141475]
[1723084926452,45.34,154.89,154.8,47.9]
[1723084927767,0.34,154.89,154.81,20.0]
[1723084927968,0.34,154.89,154.81,21.29069505]
[1723084928171,45.34,154.89,154.81,21.29069505]
[1723084928488,0.34,154.89,154.81,21.29069505]
[1723084928697,0.34,154.89,154.82,1.29019484]
[1723084928855,0.34,154.89,154.81,21.28977813]
[1723084929059,0.34,154.89,154.81,20.0]
[1723084929665,14.4608,154.9,154.84,47.9]
[1723084929864,14.4608,154.9,154.85,20.0]
[1723084930285,6.2194,154.93,154.86,1.2905107]
[1723084930465,6.2194,154.93,154.88,47.9]
[1723084930676,6.2194,154.93,154.89,21.29091917]
[1723084931083,15.5975,154.95,154.9,45.0]
[1723084931271,6.4363,154.98,154.92,47.9]
[1723084931580,6.4363,154.98,154.93,20.0]
[1723084933493,6.4363,154.98,154.94,1.14770826]
[1723084933699,6.4363,154.98,154.93,20.0]
[1723084937508,0.34,154.97,154.93,20.0]
[1723084937671,0.17,154.97,154.93,20.0]
[1723084937873,0.34,154.97,154.89,47.9]
[1723084939206,0.34,154.97,154.85,47.9]
[1723084939207,45.34,154.97,154.85,47.9]
[1723084939503,1.28509694,154.96,154.81,15.8127]
[1723084939707,1.28509694,154.96,154.8,47.9]
[1723084939708,0.17,154.95,154.8,47.9]
[1723084939873,0.34,154.95,154.81,0.38071592]
[1723084940200,0.34,154.95,154.84,47.9]
[1723084940489,0.17,154.94,154.84,47.9]
[1723084940670,0.34,154.96,154.84,47.9]
[1723084940869,0.34,154.96,154.85,20.0]
[1723084941080,0.34,154.96,154.86,0.38059299]
[1723084941267,0.34,154.96,154.85,20.0]
[1723084941731,0.34,154.96,154.86,1.29115199]
[1723084942020,0.34,154.96,154.86,1.29073511]
[1723084942812,0.34,154.96,154.85,20.0]
[1723084943324,16.6026,154.95,154.85,20.0]
[1723084943628,6.0534,154.93,154.85,20.0]
[1723084943915,45.17,154.92,154.85,20.0]
[1723084944126,45.34,154.92,154.85,20.0]
[1723084944416,0.34,154.92,154.85,20.0]
[1723084944805,45.34,154.92,154.85,20.0]
[1723084945017,6.0534,154.93,154.85,20.0]
[1723084946106,12.5079,154.93,154.8,47.9]
[1723084946294,45.17,154.92,154.8,47.9]
[1723084946491,45.17,154.92,154.76,47.9]
[1723084946492,6.4557,154.9,154.76,47.9]
[1723084946823,45.17,154.89,154.76,47.9]
[1723084947028,0.17,154.88,154.76,47.9]
[1723084947597,0.17,154.88,154.8,47.9]
[1723084948692,0.17,154.88,154.76,50.17744014]
[1723084949021,0.34,154.89,154.76,47.9]
[1723084949320,21.6239,154.88,154.76,47.9]
[1723084949523,45.34,154.87,154.76,47.9]
[1723084950096,45.34,154.87,154.72,2.21736111]
[1723084950414,45.34,154.87,154.71,50.0178641]
[1723084950801,6.4583,154.84,154.71,48.7258795]
[1723084951134,15.9146,154.82,154.71,48.7258795]
[1723084951301,45.17,154.81,154.71,0.8258795]
[1723084951498,7.43809694,154.8,154.71,0.8258795]
[1723084951691,45.34,154.79,154.71,0.8258795]
[1723084952395,6.153,154.8,154.75,47.9]
[1723084953607,6.153,154.8,154.76,20.0]
[1723084953812,15.9146,154.82,154.76,21.29193497]
[1723084954011,15.9146,154.82,154.77,1.29138943]
[1723084954212,6.3715,154.84,154.77,1.29138943]
[1723084954419,6.3715,154.84,154.79,47.9]
[1723084954611,6.3715,154.84,154.8,20.0]
[1723084954920,6.3715,154.84,154.71,48.7258795]
[1723084955125,6.3715,154.84,154.72,65.0]
[1723084955426,6.3715,154.84,154.72,20.0]
[1723084955630,6.3715,154.84,154.73,45.0]
[1723084955828,45.34,154.83,154.74,21.29204827]
[1723084956031,0.34,154.83,154.74,21.29204827]
[1723084956522,0.17,154.83,154.74,21.29204827]
[1723084956710,6.3715,154.84,154.74,20.0]
[1723084957505,6.3715,154.84,154.74,21.29204717]
[1723084957716,6.3715,154.84,154.75,20.0]
[1723084957924,0.34,154.83,154.73,0.87917355]
[1723084958125,0.34,154.83,154.72,20.0]
[1723084958329,45.34,154.83,154.72,20.0]
[1723084958536,0.34,154.83,154.72,20.0]
[1723084958903,0.34,154.83,154.73,45.0]
[1723084959232,0.17,154.83,154.74,21.29197458]
[1723084959404,0.17,154.83,154.74,20.0]
[1723084959807,0.17,154.83,154.72,20.0]
[1723084960023,16.4314,154.82,154.71,0.8258795]
[1723084960233,22.8379,154.81,154.71,0.8258795]
[1723084960463,7.74499694,154.8,154.71,0.8258795]
[1723084960609,0.34,154.79,154.71,0.8258795]
[1723084960925,1.62509694,154.79,154.71,0.8258795]
[1723084962210,45.34,154.79,154.71,0.8258795]
[1723084962727,0.34,154.79,154.71,0.8258795]
[1723084963425,22.6679,154.81,154.71,0.8258795]
[1723084964719,45.34,154.8,154.71,0.8258795]
[1723084965813,51.8,154.8,154.71,0.8258795]
[1723084966312,45.34,154.8,154.71,0.8258795]
[1723084968436,22.6679,154.81,154.71,0.8258795]
[1723084969333,22.6679,154.81,154.71,2.11817532]
[1723084969836,45.17,154.8,154.71,0.8258795]
[1723084970034,0.17,154.79,154.71,0.8258795]
[1723084970815,45.34,154.8,154.71,0.8258795]
[1723084971245,1.28509694,154.79,154.71,0.8258795]
[1723084971540,0.34,154.78,154.71,0.8258795]
[1723084971714,0.17,154.78,154.71,0.8258795]
[1723084971917,0.17,154.79,154.71,0.8258795]
[1723084973930,0.17,154.79,154.71,0.3258795]
[1723084975417,22.6679,154.81,154.71,0.3258795]
[1723084975637,29.1276,154.81,154.71,0.3258795]
[1723084975945,7.74499694,154.8,154.71,0.3258795]
[1723084976515,23.95299694,154.81,154.71,0.3258795]
[1723084976913,45.17,154.8,154.71,0.3258795]
[1723084977340,22.6679,154.81,154.71,0.3258795]
[1723084978225,29.1274,154.81,154.71,0.3258795]
[1723084978425,23.95299694,154.81,154.71,0.3258795]
[1723084978823,45.0,154.8,154.71,0.3258795]
[1723084979128,1.28509694,154.79,154.71,0.3258795]
[1723084979337,45.0,154.8,154.71,0.3258795]
[1723084979753,0.34,154.79,154.71,0.3258795]
[1723084980646,1.62509694,154.79,154.71,0.3258795]
[1723084980855,0.34,154.79,154.71,0.3258795]
[1723084981488,0.17,154.79,154.71,0.3258795]
[1723084981664,22.6679,154.81,154.71,0.3258795]
[1723084981856,22.6679,154.81,154.71,48.2258795]
[1723084982234,22.6679,154.81,154.71,0.3258795]
[1723084982536,1.28509694,154.8,154.71,0.3258795]
[1723084982740,7.74499694,154.8,154.71,0.3258795]
[1723084982932,6.4599,154.8,154.71,0.3258795]
[1723084983440,45.34,154.79,154.71,0.3258795]
[1723084983636,0.34,154.79,154.71,0.3258795]
[1723084983871,1.62509694,154.79,154.71,0.3258795]
[1723084984072,8.08539694,154.79,154.71,0.3258795]
[1723084984363,45.0,154.78,154.71,0.3258795]
[1723084984542,0.34,154.77,154.71,0.3258795]
[1723084985566,22.6679,154.81,154.71,0.3258795]
[1723084986235,29.1274,154.81,154.71,0.3258795]
[1723084986834,45.34,154.8,154.71,0.3258795]
[1723084988566,6.3372,154.85,154.71,48.2258795]
[1723084988754,259.9372,154.9,154.75,47.9]
[1723084988943,6.3372,154.9,154.79,47.9]
[1723084989147,6.3372,154.94,154.8,21.29142907]
[1723084989368,12.7913,154.94,154.81,45.0]
[1723084989572,6.3372,154.94,154.82,21.29146973]
[1723084989738,6.3372,154.94,154.83,20.0]
[1723084989938,6.3372,154.94,154.83,47.9]
[1723084990239,6.4526,154.98,154.84,65.0]
[1723084990240,6.1287,154.98,154.84,65.0]
[1723084990446,15.0024,155.0,154.87,47.9]
[1723084990644,259.7287,155.02,154.88,66.29073278]
[1723084991042,259.7287,155.02,154.88,65.0]
[1723084991245,266.1796,155.02,154.89,1.29066479]
[1723084991457,266.1796,155.02,154.88,65.0]
[1723084991772,259.7287,155.02,154.88,66.11719306]
[1723084991934,6.1287,155.02,154.88,66.11719306]
[1723084992136,6.1287,155.02,154.91,47.9]
[1723084992340,6.1287,155.02,154.92,66.11690475]
[1723084993572,6.4483,155.08,154.93,21.7225]
[1723084993877,0.5,155.09,154.94,20.0]
[1723084994045,1.28509694,155.08,154.94,20.0]
[1723084994241,6.4496,155.05,154.94,20.0]
[1723084994442,6.4519,155.0,154.87,6.1174]
[1723084994748,6.4533,154.96,154.86,15.7525]
[1723084995050,1.28509694,155.0,154.86,15.7525]
[1723084995469,1.28509694,155.0,154.82,6.4548]
[1723084995470,34.8798,154.99,154.82,6.4548]